[Event "Titled Tuesday Blitz July 4 Early 2023"]
[White "Guevara Sanchez, Erick Marvin"]
[Black "Peiris, T G M"]
[WhiteFideId "6700136"]
[BlackFideId "9901310"]
[WhiteElo "2054"]
[BlackElo "2231"]
[Result "1-0"]
[Round "7"]
[TimeControl "180+2"]
[Date "2023.07.04"]
[WhiteClock "0:00:13"]
[BlackClock "0:00:14"]
[Board "192"]

1. e4 {[%clk 0:03:00]}  c5 {[%clk 0:02:58]} 2. Nf3 {[%clk 0:03:01]}  Nc6 {[%clk 0:02:59]} 3. d4 {[%clk 0:03:01]}  cxd4 {[%clk 0:02:59]} 4. Nxd4 {[%clk 0:03:02]}  Nf6 {[%clk 0:02:59]} 5. Nc3 {[%clk 0:03:02]}  g6 {[%clk 0:03:00]} 6. f4 {[%clk 0:02:58]}  Bg7 {[%clk 0:03:00]} 7. e5 {[%clk 0:02:58]}  Ng8 {[%clk 0:02:40]} 8. Bc4 {[%clk 0:02:35]}  a6 {[%clk 0:02:35]} 9. O-O {[%clk 0:02:30]}  Nh6 {[%clk 0:02:35]} 10. Be3 {[%clk 0:02:02]}  O-O {[%clk 0:02:33]} 11. Bb3 {[%clk 0:01:59]}  d6 {[%clk 0:02:29]} 12. e6 {[%clk 0:01:57]}  f5 {[%clk 0:01:49]} 13. h3 {[%clk 0:01:46]}  Na5 {[%clk 0:01:41]} 14. Bd5 {[%clk 0:01:43]}  Rb8 {[%clk 0:01:37]} 15. a4 {[%clk 0:01:35]}  Qc7 {[%clk 0:01:36]} 16. Qe2 {[%clk 0:01:19]}  Kh8 {[%clk 0:01:23]} 17. Ba2 {[%clk 0:01:17]}  Ng8 {[%clk 0:01:22]} 18. Nd5 {[%clk 0:01:14]}  Qd8 {[%clk 0:01:22]} 19. Nf3 {[%clk 0:01:08]}  Bxe6 {[%clk 0:01:14]} 20. Bb6 {[%clk 0:01:06]}  Qc8 {[%clk 0:01:05]} 21. Bxa5 {[%clk 0:01:05]}  Qc5+ {[%clk 0:01:06]} 22. Kh1 {[%clk 0:01:00]}  Bxd5 {[%clk 0:01:05]} 23. b4 {[%clk 0:01:00]}  Qc6 {[%clk 0:01:02]} 24. b5 {[%clk 0:00:44]}  Qc5 {[%clk 0:00:50]} 25. Bxd5 {[%clk 0:00:38]}  Qxd5 {[%clk 0:00:50]} 26. Rad1 {[%clk 0:00:38]}  Qc5 {[%clk 0:00:51]} 27. c3 {[%clk 0:00:28]}  axb5 {[%clk 0:00:50]} 28. axb5 {[%clk 0:00:27]}  b6 {[%clk 0:00:41]} 29. Bb4 {[%clk 0:00:28]}  Qc7 {[%clk 0:00:40]} 30. Rfe1 {[%clk 0:00:26]}  Rbc8 {[%clk 0:00:33]} 31. Ng5 {[%clk 0:00:25]}  Qd7 {[%clk 0:00:28]} 32. Ne6 {[%clk 0:00:24]}  Rfe8 {[%clk 0:00:26]} 33. Nxg7 {[%clk 0:00:20]}  Kxg7 {[%clk 0:00:27]} 34. Qd3 {[%clk 0:00:20]}  Nf6 {[%clk 0:00:27]} 35. Qd4 {[%clk 0:00:20]}  Qc7 {[%clk 0:00:25]} 36. Ba3 {[%clk 0:00:18]}  e5 {[%clk 0:00:23]} 37. fxe5 {[%clk 0:00:18]}  dxe5 {[%clk 0:00:24]} 38. Qg1 {[%clk 0:00:17]}  Rcd8 {[%clk 0:00:22]} 39. Rxd8 {[%clk 0:00:17]}  Rxd8 {[%clk 0:00:23]} 40. Bb4 {[%clk 0:00:16]}  Qc4 {[%clk 0:00:21]} 41. Qe3 {[%clk 0:00:16]}  e4 {[%clk 0:00:21]} 42. Qf4 {[%clk 0:00:14]}  Qxb5 {[%clk 0:00:20]} 43. Qc7+ {[%clk 0:00:14]}  Rd7 {[%clk 0:00:20]} 44. Qc8 {[%clk 0:00:13]}  Qe5 {[%clk 0:00:14]} 45. Qf8# {[%clk 0:00:13]} 1-0


[Site "https://www.chess.com"]

[Event "Titled Tuesday Blitz July 4 Early 2023"]
[White "Politov, Pavel Y."]
[Black "Kiseleva, Arina"]
[WhiteFideId "24110515"]
[BlackFideId "4164989"]
[WhiteElo "2048"]
[BlackElo "2192"]
[Result "1-0"]
[Round "7"]
[TimeControl "180+2"]
[Date "2023.07.04"]
[WhiteClock "0:00:25"]
[BlackClock "0:00:00"]
[Board "194"]

1. e4 {[%clk 0:03:00]}  c6 {[%clk 0:02:59]} 2. d4 {[%clk 0:02:57]}  d5 {[%clk 0:02:59]} 3. exd5 {[%clk 0:02:57]}  cxd5 {[%clk 0:02:59]} 4. Bd3 {[%clk 0:02:57]}  Nf6 {[%clk 0:02:58]} 5. h3 {[%clk 0:02:57]}  Nc6 {[%clk 0:02:54]} 6. c3 {[%clk 0:02:56]}  g6 {[%clk 0:02:49]} 7. Nf3 {[%clk 0:02:55]}  Bf5 {[%clk 0:02:47]} 8. Ne5 {[%clk 0:02:54]}  Bxd3 {[%clk 0:02:45]} 9. Nxd3 {[%clk 0:02:53]}  e6 {[%clk 0:02:37]} 10. O-O {[%clk 0:02:52]}  Bd6 {[%clk 0:02:35]} 11. Re1 {[%clk 0:02:44]}  Ne4 {[%clk 0:02:13]} 12. Nd2 {[%clk 0:02:41]}  Nxd2 {[%clk 0:02:01]} 13. Bxd2 {[%clk 0:02:39]}  Qh4 {[%clk 0:01:52]} 14. Qf3 {[%clk 0:02:30]}  O-O {[%clk 0:01:46]} 15. Ne5 {[%clk 0:02:28]}  Nxe5 {[%clk 0:01:30]} 16. dxe5 {[%clk 0:02:27]}  Bc7 {[%clk 0:01:27]} 17. Bf4 {[%clk 0:02:20]}  Rac8 {[%clk 0:01:24]} 18. Bg3 {[%clk 0:02:18]}  Qe7 {[%clk 0:01:22]} 19. Qg4 {[%clk 0:02:12]}  Bd8 {[%clk 0:01:13]} 20. Re3 {[%clk 0:02:01]}  h5 {[%clk 0:01:07]} 21. Qf3 {[%clk 0:01:56]}  Rc4 {[%clk 0:00:56]} 22. Bf4 {[%clk 0:01:38]}  Kh7 {[%clk 0:00:54]} 23. Bh2 {[%clk 0:01:29]}  Qc7 {[%clk 0:00:37]} 24. Rd1 {[%clk 0:01:25]}  b5 {[%clk 0:00:33]} 25. Red3 {[%clk 0:01:19]}  Bg5 {[%clk 0:00:30]} 26. Rd4 {[%clk 0:01:16]}  Kg7 {[%clk 0:00:15]} 27. Bf4 {[%clk 0:01:09]}  Bxf4 {[%clk 0:00:15]} 28. Qxf4 {[%clk 0:01:09]}  Rxd4 {[%clk 0:00:15]} 29. Rxd4 {[%clk 0:01:08]}  Rc8 {[%clk 0:00:14]} 30. Qf6+ {[%clk 0:01:07]}  Kg8 {[%clk 0:00:14]} 31. Qg5 {[%clk 0:01:04]}  Qd8 {[%clk 0:00:12]} 32. Qxd8+ {[%clk 0:01:00]}  Rxd8 {[%clk 0:00:13]} 33. Kf1 {[%clk 0:00:59]}  a6 {[%clk 0:00:12]} 34. Ke2 {[%clk 0:00:59]}  Rc8 {[%clk 0:00:12]} 35. Kd2 {[%clk 0:00:58]}  Kf8 {[%clk 0:00:12]} 36. Kc2 {[%clk 0:00:58]}  Ke7 {[%clk 0:00:12]} 37. a4 {[%clk 0:00:57]}  Rc4 {[%clk 0:00:08]} 38. axb5 {[%clk 0:00:51]}  axb5 {[%clk 0:00:08]} 39. Kb3 {[%clk 0:00:49]}  f6 {[%clk 0:00:05]} 40. f4 {[%clk 0:00:42]}  fxe5 {[%clk 0:00:05]} 41. fxe5 {[%clk 0:00:42]}  g5 {[%clk 0:00:05]} 42. Rxc4 {[%clk 0:00:31]}  bxc4+ {[%clk 0:00:05]} 43. Kb4 {[%clk 0:00:31]}  Kf7 {[%clk 0:00:06]} 44. Kc5 {[%clk 0:00:31]}  Kg6 {[%clk 0:00:06]} 45. g4 {[%clk 0:00:25]}  hxg4 {[%clk 0:00:03]} 46. hxg4 {[%clk 0:00:24]}  Kg7 {[%clk 0:00:02]} 47. Kd6 {[%clk 0:00:24]}  Kf7 {[%clk 0:00:00]} 48. Kd7 {[%clk 0:00:25]} 1-0


[Site "https://www.chess.com"]

[Event "Titled Tuesday Blitz July 4 Early 2023"]
[White "Goughfather"]
[Black "Vila Dupla, Aurelio"]
[BlackFideId "2203383"]
[WhiteElo "2038"]
[BlackElo "2177"]
[Result "1-0"]
[Round "7"]
[TimeControl "180+2"]
[Date "2023.07.04"]
[WhiteClock "0:00:06"]
[BlackClock "0:00:00"]
[Board "195"]

1. d4 {[%clk 0:03:00]}  Nf6 {[%clk 0:02:59]} 2. Nc3 {[%clk 0:03:00]}  d5 {[%clk 0:02:58]} 3. Bf4 {[%clk 0:03:00]}  g6 {[%clk 0:02:58]} 4. e3 {[%clk 0:02:55]}  Bg7 {[%clk 0:02:55]} 5. h4 {[%clk 0:02:54]}  h5 {[%clk 0:02:54]} 6. Nf3 {[%clk 0:02:54]}  O-O {[%clk 0:02:54]} 7. Ne5 {[%clk 0:02:48]}  c5 {[%clk 0:02:54]} 8. Be2 {[%clk 0:02:36]}  Nc6 {[%clk 0:02:54]} 9. Nxc6 {[%clk 0:02:15]}  bxc6 {[%clk 0:02:52]} 10. Be5 {[%clk 0:02:15]}  cxd4 {[%clk 0:02:11]} 11. exd4 {[%clk 0:02:08]}  Qa5 {[%clk 0:01:50]} 12. Qd2 {[%clk 0:02:04]}  Nd7 {[%clk 0:01:17]} 13. Bxg7 {[%clk 0:01:58]}  Kxg7 {[%clk 0:01:18]} 14. g4 {[%clk 0:01:56]}  e5 {[%clk 0:01:08]} 15. gxh5 {[%clk 0:01:52]}  c5 {[%clk 0:01:00]} 16. Nxd5 {[%clk 0:01:39]}  Qxd2+ {[%clk 0:00:58]} 17. Kxd2 {[%clk 0:01:38]}  exd4 {[%clk 0:00:46]} 18. Rhg1 {[%clk 0:01:26]}  Ne5 {[%clk 0:00:43]} 19. f4 {[%clk 0:01:20]}  Bb7 {[%clk 0:00:34]} 20. Nf6 {[%clk 0:00:30]}  Kxf6 {[%clk 0:00:30]} 21. fxe5+ {[%clk 0:00:31]}  Kxe5 {[%clk 0:00:30]} 22. hxg6 {[%clk 0:00:31]}  fxg6 {[%clk 0:00:30]} 23. Rxg6 {[%clk 0:00:30]}  Rf2 {[%clk 0:00:30]} 24. Ke1 {[%clk 0:00:16]}  Rh2 {[%clk 0:00:27]} 25. Rg5+ {[%clk 0:00:16]}  Kf6 {[%clk 0:00:26]} 26. Kd2 {[%clk 0:00:10]}  Re8 {[%clk 0:00:25]} 27. Rf1+ {[%clk 0:00:08]}  Ke6 {[%clk 0:00:22]} 28. Kd1 {[%clk 0:00:08]}  Kd7 {[%clk 0:00:19]} 29. Bb5+ {[%clk 0:00:07]}  Bc6 {[%clk 0:00:18]} 30. Rg7+ {[%clk 0:00:07]}  Re7 {[%clk 0:00:18]} 31. Rxe7+ {[%clk 0:00:07]}  Kxe7 {[%clk 0:00:19]} 32. Bxc6 {[%clk 0:00:07]}  Rxh4 {[%clk 0:00:20]} 33. Re1+ {[%clk 0:00:06]}  Kd6 {[%clk 0:00:20]} 34. Be4 {[%clk 0:00:07]}  Rh8 {[%clk 0:00:18]} 35. b3 {[%clk 0:00:07]}  a5 {[%clk 0:00:18]} 36. Bd3 {[%clk 0:00:07]}  Rh2 {[%clk 0:00:17]} 37. a4 {[%clk 0:00:07]}  Rf2 {[%clk 0:00:17]} 38. Re2 {[%clk 0:00:08]}  Rf1+ {[%clk 0:00:16]} 39. Kd2 {[%clk 0:00:08]}  Ra1 {[%clk 0:00:16]} 40. Rh2 {[%clk 0:00:07]}  Rg1 {[%clk 0:00:15]} 41. Rh6+ {[%clk 0:00:07]}  Kc7 {[%clk 0:00:15]} 42. Bc4 {[%clk 0:00:06]}  Rg2+ {[%clk 0:00:13]} 43. Kc1 {[%clk 0:00:06]}  Rg3 {[%clk 0:00:13]} 44. Bd3 {[%clk 0:00:06]}  Kb7 {[%clk 0:00:12]} 45. Kd2 {[%clk 0:00:06]}  Rg2+ {[%clk 0:00:11]} 46. Ke1 {[%clk 0:00:07]}  Rg1+ {[%clk 0:00:11]} 47. Kf2 {[%clk 0:00:07]}  Rg5 {[%clk 0:00:11]} 48. Kf3 {[%clk 0:00:07]}  Re5 {[%clk 0:00:11]} 49. Kf4 {[%clk 0:00:07]}  Re3 {[%clk 0:00:10]} 50. Be4+ {[%clk 0:00:07]}  Ka7 {[%clk 0:00:08]} 51. Ke5 {[%clk 0:00:07]}  d3 {[%clk 0:00:06]} 52. cxd3 {[%clk 0:00:06]}  Re1 {[%clk 0:00:06]} 53. Kd5 {[%clk 0:00:06]}  Rb1 {[%clk 0:00:05]} 54. Kc4 {[%clk 0:00:06]}  Rc1+ {[%clk 0:00:05]} 55. Kb5 {[%clk 0:00:06]}  Rc3 {[%clk 0:00:05]} 56. Bd5 {[%clk 0:00:05]}  Rxd3 {[%clk 0:00:05]} 57. Bc4 {[%clk 0:00:06]}  Rd7 {[%clk 0:00:04]} 58. Ra6+ {[%clk 0:00:04]}  Kb7 {[%clk 0:00:04]} 59. Rb6+ {[%clk 0:00:05]}  Ka7 {[%clk 0:00:03]} 60. Kxa5 {[%clk 0:00:05]}  Rd2 {[%clk 0:00:02]} 61. Rc6 {[%clk 0:00:05]}  Ra2 {[%clk 0:00:01]} 62. Rxc5 {[%clk 0:00:05]}  Kb7 {[%clk 0:00:02]} 63. Kb5 {[%clk 0:00:05]}  Rb2 {[%clk 0:00:02]} 64. Bd5+ {[%clk 0:00:05]}  Kb8 {[%clk 0:00:00]} 65. b4 {[%clk 0:00:06]} 1-0


[Site "https://www.chess.com"]

[Event "Titled Tuesday Blitz July 4 Early 2023"]
[White "Horokoskii"]
[Black "Skiadopoulos, Nikolaos"]
[BlackFideId "4200772"]
[WhiteElo "2077"]
[BlackElo "1887"]
[Result "1/2-1/2"]
[Round "7"]
[TimeControl "180+2"]
[Date "2023.07.04"]
[WhiteClock "0:00:06"]
[BlackClock "0:00:39"]
[Board "197"]

1. d4 {[%clk 0:03:00]}  Nf6 {[%clk 0:02:58]} 2. c4 {[%clk 0:03:01]}  c5 {[%clk 0:02:57]} 3. d5 {[%clk 0:03:00]}  b5 {[%clk 0:02:57]} 4. cxb5 {[%clk 0:03:01]}  a6 {[%clk 0:02:56]} 5. bxa6 {[%clk 0:03:01]}  e6 {[%clk 0:02:56]} 6. Nc3 {[%clk 0:03:02]}  Nxd5 {[%clk 0:02:54]} 7. Nxd5 {[%clk 0:03:01]}  exd5 {[%clk 0:02:54]} 8. Qxd5 {[%clk 0:03:00]}  Nc6 {[%clk 0:02:53]} 9. e3 {[%clk 0:02:51]}  Be7 {[%clk 0:02:53]} 10. Nf3 {[%clk 0:02:50]}  O-O {[%clk 0:02:52]} 11. Be2 {[%clk 0:02:50]}  Bxa6 {[%clk 0:02:52]} 12. Bxa6 {[%clk 0:02:47]}  Qa5+ {[%clk 0:02:51]} 13. Bd2 {[%clk 0:02:45]}  Qxa6 {[%clk 0:02:51]} 14. Bc3 {[%clk 0:02:17]}  Rfb8 {[%clk 0:02:35]} 15. Ne5 {[%clk 0:01:59]}  Nxe5 {[%clk 0:02:30]} 16. Bxe5 {[%clk 0:01:56]}  d6 {[%clk 0:02:04]} 17. Bc3 {[%clk 0:01:53]}  Bf6 {[%clk 0:01:54]} 18. Bxf6 {[%clk 0:01:48]}  gxf6 {[%clk 0:01:53]} 19. Qd2 {[%clk 0:01:48]}  Rb4 {[%clk 0:01:34]} 20. h4 {[%clk 0:01:32]}  Rab8 {[%clk 0:01:32]} 21. Rh3 {[%clk 0:00:59]}  Rxb2 {[%clk 0:01:27]} 22. Qd1 {[%clk 0:00:50]}  Rxa2 {[%clk 0:01:08]} 23. Rc1 {[%clk 0:00:30]}  Rbb2 {[%clk 0:01:07]} 24. Rg3+ {[%clk 0:00:19]}  Kf8 {[%clk 0:01:06]} 25. Qg4 {[%clk 0:00:12]}  Re2+ {[%clk 0:01:02]} 26. Kf1 {[%clk 0:00:10]}  Rxf2+ {[%clk 0:00:57]} 27. Kg1 {[%clk 0:00:10]}  Qa3 {[%clk 0:00:40]} 28. Qc8+ {[%clk 0:00:09]}  Ke7 {[%clk 0:00:40]} 29. Qc7+ {[%clk 0:00:08]}  Ke6 {[%clk 0:00:40]} 30. Qc8+ {[%clk 0:00:08]}  Ke7 {[%clk 0:00:39]} 31. Qc7+ {[%clk 0:00:07]}  Ke6 {[%clk 0:00:39]} 32. Qc8+ {[%clk 0:00:06]}  Ke7 {[%clk 0:00:39]} 1/2-1/2


[Site "https://www.chess.com"]

[Event "Titled Tuesday Blitz July 4 Early 2023"]
[White "NtcPou"]
[Black "Kozelov, Roman"]
[BlackFideId "14133377"]
[WhiteElo "2030"]
[BlackElo "2335"]
[Result "0-1"]
[Round "7"]
[TimeControl "180+2"]
[Date "2023.07.04"]
[WhiteClock "0:00:03"]
[BlackClock "0:01:16"]
[Board "199"]

1. e4 {[%clk 0:03:00]}  e6 {[%clk 0:03:00]} 2. d4 {[%clk 0:03:00]}  d5 {[%clk 0:03:00]} 3. Nd2 {[%clk 0:03:00]}  dxe4 {[%clk 0:02:58]} 4. Nxe4 {[%clk 0:03:00]}  Nd7 {[%clk 0:02:59]} 5. Nf3 {[%clk 0:03:00]}  Ngf6 {[%clk 0:02:59]} 6. Nxf6+ {[%clk 0:02:59]}  Nxf6 {[%clk 0:02:59]} 7. Bd3 {[%clk 0:02:59]}  Bd6 {[%clk 0:02:59]} 8. O-O {[%clk 0:02:58]}  h6 {[%clk 0:02:58]} 9. Qe2 {[%clk 0:02:58]}  O-O {[%clk 0:02:59]} 10. c4 {[%clk 0:02:56]}  b6 {[%clk 0:02:58]} 11. Rd1 {[%clk 0:02:55]}  Bb7 {[%clk 0:02:59]} 12. b3 {[%clk 0:02:52]}  Qe7 {[%clk 0:02:54]} 13. a4 {[%clk 0:02:50]}  Rad8 {[%clk 0:02:51]} 14. Bb2 {[%clk 0:02:50]}  Rfe8 {[%clk 0:02:36]} 15. Ne5 {[%clk 0:02:46]}  Bxe5 {[%clk 0:02:33]} 16. dxe5 {[%clk 0:02:45]}  Nd7 {[%clk 0:02:33]} 17. Qg4 {[%clk 0:02:18]}  Qb4 {[%clk 0:02:27]} 18. Qg3 {[%clk 0:01:44]}  Nc5 {[%clk 0:02:24]} 19. Be2 {[%clk 0:01:30]}  Qxb3 {[%clk 0:02:20]} 20. Qxb3 {[%clk 0:01:24]}  Nxb3 {[%clk 0:02:18]} 21. Rab1 {[%clk 0:01:13]}  Be4 {[%clk 0:02:16]} 22. Rxd8 {[%clk 0:01:09]}  Rxd8 {[%clk 0:02:17]} 23. Rd1 {[%clk 0:01:08]}  Rxd1+ {[%clk 0:02:12]} 24. Bxd1 {[%clk 0:01:08]}  Nd2 {[%clk 0:02:10]} 25. f3 {[%clk 0:00:55]}  Bd3 {[%clk 0:02:08]} 26. c5 {[%clk 0:00:55]}  bxc5 {[%clk 0:02:08]} 27. Bc3 {[%clk 0:00:55]}  Nc4 {[%clk 0:02:06]} 28. Kf2 {[%clk 0:00:48]}  Kf8 {[%clk 0:01:59]} 29. Bb3 {[%clk 0:00:47]}  Ke7 {[%clk 0:01:58]} 30. f4 {[%clk 0:00:44]}  Kd7 {[%clk 0:01:58]} 31. g4 {[%clk 0:00:40]}  Kc6 {[%clk 0:01:57]} 32. h4 {[%clk 0:00:40]}  Kd5 {[%clk 0:01:57]} 33. Kf3 {[%clk 0:00:37]}  Kc6 {[%clk 0:01:51]} 34. f5 {[%clk 0:00:24]}  Kd7 {[%clk 0:01:31]} 35. Kf4 {[%clk 0:00:21]}  Nb6 {[%clk 0:01:27]} 36. Ke3 {[%clk 0:00:14]}  c4 {[%clk 0:01:27]} 37. Bxc4 {[%clk 0:00:13]}  Bxc4 {[%clk 0:01:25]} 38. Kd4 {[%clk 0:00:12]}  Bd5 {[%clk 0:01:24]} 39. a5 {[%clk 0:00:12]}  Nc4 {[%clk 0:01:24]} 40. Kc5 {[%clk 0:00:11]}  a6 {[%clk 0:01:22]} 41. Bd4 {[%clk 0:00:10]}  Nd2 {[%clk 0:01:17]} 42. Be3 {[%clk 0:00:08]}  Nf3 {[%clk 0:01:17]} 43. Bc1 {[%clk 0:00:03]}  Nxe5 {[%clk 0:01:16]} 0-1


[Site "https://www.chess.com"]

[Event "Titled Tuesday Blitz July 4 Early 2023"]
[White "Paravyan, David"]
[Black "Harshavardhan G B"]
[WhiteFideId "4194985"]
[BlackFideId "25059009"]
[WhiteElo "2992"]
[BlackElo "2848"]
[Result "0-1"]
[Round "8"]
[TimeControl "180+2"]
[Date "2023.07.04"]
[WhiteClock "0:00:00"]
[BlackClock "0:00:14"]
[Board "5"]

1. d4 {[%clk 0:03:00]}  Nf6 {[%clk 0:02:59]} 2. c4 {[%clk 0:03:00]}  e6 {[%clk 0:02:59]} 3. g3 {[%clk 0:02:59]}  c5 {[%clk 0:02:58]} 4. d5 {[%clk 0:02:59]}  exd5 {[%clk 0:02:58]} 5. cxd5 {[%clk 0:02:59]}  d6 {[%clk 0:02:59]} 6. a4 {[%clk 0:02:49]}  g6 {[%clk 0:02:59]} 7. f3 {[%clk 0:02:50]}  Bg7 {[%clk 0:02:58]} 8. e4 {[%clk 0:02:50]}  O-O {[%clk 0:02:57]} 9. Kf2 {[%clk 0:02:51]}  b6 {[%clk 0:02:51]} 10. Kg2 {[%clk 0:02:51]}  a6 {[%clk 0:02:51]} 11. h4 {[%clk 0:02:52]}  h5 {[%clk 0:02:48]} 12. Na3 {[%clk 0:02:45]}  Ne8 {[%clk 0:02:46]} 13. Nh3 {[%clk 0:02:42]}  Nd7 {[%clk 0:02:36]} 14. Nf2 {[%clk 0:02:37]}  Nc7 {[%clk 0:02:35]} 15. Nc4 {[%clk 0:02:29]}  Ne5 {[%clk 0:02:34]} 16. Nxb6 {[%clk 0:02:29]}  Rb8 {[%clk 0:02:34]} 17. a5 {[%clk 0:02:26]}  f5 {[%clk 0:02:30]} 18. Bg5 {[%clk 0:02:19]}  Qe8 {[%clk 0:02:25]} 19. Be2 {[%clk 0:02:13]}  Nb5 {[%clk 0:02:06]} 20. f4 {[%clk 0:01:47]}  Ng4 {[%clk 0:02:03]} 21. Bxg4 {[%clk 0:01:47]}  hxg4 {[%clk 0:02:01]} 22. Re1 {[%clk 0:01:47]}  Qf7 {[%clk 0:01:31]} 23. e5 {[%clk 0:01:45]}  Nd4 {[%clk 0:01:11]} 24. exd6 {[%clk 0:01:39]}  Rxb6 {[%clk 0:01:09]} 25. axb6 {[%clk 0:01:35]}  Qxd5+ {[%clk 0:01:09]} 26. Kf1 {[%clk 0:00:59]}  Bb7 {[%clk 0:01:07]} 27. Re7 {[%clk 0:00:38]}  Qg2+ {[%clk 0:00:59]} 28. Ke1 {[%clk 0:00:39]}  Qg1+ {[%clk 0:00:45]} 29. Kd2 {[%clk 0:00:39]}  Qxf2+ {[%clk 0:00:46]} 30. Kc1 {[%clk 0:00:40]}  Bf3 {[%clk 0:00:39]} 31. Qa4 {[%clk 0:00:27]}  Ne2+ {[%clk 0:00:21]} 32. Kb1 {[%clk 0:00:16]}  Qe1+ {[%clk 0:00:19]} 33. Kc2 {[%clk 0:00:16]}  Qf2 {[%clk 0:00:16]} 34. Qc4+ {[%clk 0:00:08]}  Kh8 {[%clk 0:00:16]} 35. Kb3 {[%clk 0:00:05]}  Nd4+ {[%clk 0:00:15]} 36. Ka2 {[%clk 0:00:04]}  Nc6 {[%clk 0:00:15]} 37. Rxg7 {[%clk 0:00:04]}  Bd5 {[%clk 0:00:14]} 38. Qxd5 {[%clk 0:00:02]}  Nb4+ {[%clk 0:00:15]} 39. Ka3 {[%clk 0:00:02]}  Nxd5 {[%clk 0:00:15]} 40. Re7 {[%clk 0:00:02]}  Qd4 {[%clk 0:00:14]} 41. b7 {[%clk 0:00:01]}  Qb4+ {[%clk 0:00:15]} 42. Ka2 {[%clk 0:00:02]}  Qa4+ {[%clk 0:00:14]} 43. Kb1 {[%clk 0:00:02]}  Qd1+ {[%clk 0:00:15]} 44. Ka2 {[%clk 0:00:02]}  Nb4+ {[%clk 0:00:15]} 45. Ka3 {[%clk 0:00:03]}  Qxa1+ {[%clk 0:00:15]} 46. Kb3 {[%clk 0:00:04]}  Qd1+ {[%clk 0:00:16]} 47. Ka3 {[%clk 0:00:04]}  Qd3+ {[%clk 0:00:16]} 48. Ka4 {[%clk 0:00:03]}  Qb5+ {[%clk 0:00:16]} 49. Ka3 {[%clk 0:00:03]}  Nc2+ {[%clk 0:00:16]} 50. Ka2 {[%clk 0:00:04]}  Nd4 {[%clk 0:00:16]} 51. d7 {[%clk 0:00:01]}  Qb3+ {[%clk 0:00:15]} 52. Kb1 {[%clk 0:00:01]}  Nc6 {[%clk 0:00:15]} 53. Bf6+ {[%clk 0:00:00]}  Rxf6 {[%clk 0:00:14]} 0-1


[Site "https://www.chess.com"]

[Event "Titled Tuesday Blitz July 4 Early 2023"]
[White "Lin, Dachey"]
[Black "Matlakov, Maxim"]
[WhiteFideId "2029650"]
[BlackFideId "4168003"]
[WhiteElo "2809"]
[BlackElo "2941"]
[Result "0-1"]
[Round "8"]
[TimeControl "180+2"]
[Date "2023.07.04"]
[WhiteClock "0:00:33"]
[BlackClock "0:01:06"]
[Board "6"]

1. Nc3 {[%clk 0:03:00]}  c5 {[%clk 0:02:57]} 2. e4 {[%clk 0:03:01]}  d6 {[%clk 0:02:57]} 3. f4 {[%clk 0:03:02]}  g6 {[%clk 0:02:56]} 4. Nf3 {[%clk 0:03:01]}  Bg7 {[%clk 0:02:56]} 5. Bc4 {[%clk 0:03:02]}  Nc6 {[%clk 0:02:56]} 6. O-O {[%clk 0:03:02]}  e6 {[%clk 0:02:56]} 7. d3 {[%clk 0:02:41]}  Nge7 {[%clk 0:02:56]} 8. Qe1 {[%clk 0:02:38]}  O-O {[%clk 0:02:54]} 9. f5 {[%clk 0:02:36]}  d5 {[%clk 0:02:54]} 10. Bb3 {[%clk 0:02:36]}  exf5 {[%clk 0:02:48]} 11. Nxd5 {[%clk 0:02:19]}  Nxd5 {[%clk 0:02:44]} 12. exd5 {[%clk 0:02:15]}  Re8 {[%clk 0:02:38]} 13. Bg5 {[%clk 0:01:35]}  Rxe1 {[%clk 0:02:37]} 14. Raxe1 {[%clk 0:01:32]}  Bf6 {[%clk 0:02:00]} 15. Bxf6 {[%clk 0:01:20]}  Qxf6 {[%clk 0:02:01]} 16. Re8+ {[%clk 0:01:15]}  Kg7 {[%clk 0:02:01]} 17. dxc6 {[%clk 0:01:16]}  Qxc6 {[%clk 0:01:45]} 18. Rfe1 {[%clk 0:01:15]}  c4 {[%clk 0:01:43]} 19. Bxc4 {[%clk 0:01:12]}  b5 {[%clk 0:01:43]} 20. Bb3 {[%clk 0:01:00]}  Bb7 {[%clk 0:01:27]} 21. R8e7 {[%clk 0:00:54]}  Qb6+ {[%clk 0:01:27]} 22. Kf1 {[%clk 0:00:49]}  Bxf3 {[%clk 0:01:26]} 23. Rxf7+ {[%clk 0:00:49]}  Kh6 {[%clk 0:01:26]} 24. gxf3 {[%clk 0:00:50]}  Qc6 {[%clk 0:01:24]} 25. Kf2 {[%clk 0:00:44]}  Re8 {[%clk 0:01:23]} 26. Rxe8 {[%clk 0:00:44]}  Qxe8 {[%clk 0:01:24]} 27. Rxa7 {[%clk 0:00:44]}  f4 {[%clk 0:01:24]} 28. Rf7 {[%clk 0:00:36]}  Qe3+ {[%clk 0:01:23]} 29. Kg2 {[%clk 0:00:36]}  Qe2+ {[%clk 0:01:23]} 30. Kg1 {[%clk 0:00:37]}  Qxf3 {[%clk 0:01:23]} 31. c3 {[%clk 0:00:35]}  Qe3+ {[%clk 0:01:22]} 32. Kf1 {[%clk 0:00:35]}  Qxd3+ {[%clk 0:01:22]} 33. Kf2 {[%clk 0:00:35]}  Qe3+ {[%clk 0:01:22]} 34. Kf1 {[%clk 0:00:36]}  Qf3+ {[%clk 0:01:09]} 35. Ke1 {[%clk 0:00:36]}  Qh1+ {[%clk 0:01:07]} 36. Kf2 {[%clk 0:00:36]}  Qxh2+ {[%clk 0:01:06]} 37. Kf3 {[%clk 0:00:33]}  Qg3+ {[%clk 0:01:06]} 0-1


[Site "https://www.chess.com"]